bitfinex/quotes_BTCUSD_20250414
["timestamp","ask_amount","ask_price","bid_price","bid_amount"]
[1744600120894,0.48915039,84922.0,84905.0,0.05334672]
[1744600121142,0.84031113,84922.0,84903.0,0.05334672]
[1744600121355,0.01454085,84921.0,84920.0,4e-07]
[1744600121571,0.13538239,84921.0,84920.0,4e-07]
[1744600121778,0.13538239,84921.0,84920.0,0.00046461]
[1744600121779,0.14401573,84921.0,84920.0,0.00046461]
[1744600122171,0.35807573,84921.0,84920.0,0.00046461]
[1744600122305,0.35807573,84921.0,84920.0,6.1e-07]
[1744600123506,0.36307573,84921.0,84920.0,6.1e-07]
[1744600123711,0.37107573,84921.0,84920.0,0.00100061]
[1744600123912,0.15701573,84921.0,84920.0,0.00100061]
[1744600124112,0.30783488,84921.0,84920.0,0.00100061]
[1744600124353,0.32237573,84921.0,84920.0,0.00100061]
[1744600125248,0.31737573,84921.0,84920.0,0.00100061]
[1744600125657,0.31237573,84921.0,84920.0,6.1e-07]
[1744600126067,0.30937573,84921.0,84920.0,6.1e-07]
[1744600126313,0.31337573,84921.0,84920.0,6.1e-07]
[1744600126544,0.31537573,84921.0,84920.0,6.1e-07]
[1744600126909,0.31137573,84921.0,84920.0,6.1e-07]
[1744600127120,0.29783488,84921.0,84920.0,6.1e-07]
[1744600127346,0.29987488,84921.0,84920.0,0.05334733]
[1744600127551,0.43514421,84921.0,84920.0,6.1e-07]
[1744600127757,0.90104421,84921.0,84920.0,6.1e-07]
[1744600127969,0.90404421,84921.0,84920.0,6.1e-07]
[1744600128766,0.90204421,84921.0,84920.0,6.1e-07]
[1744600128985,0.89804421,84921.0,84920.0,6.1e-07]
[1744600129374,0.01454085,84914.0,84912.0,0.000845]
[1744600129575,0.200193,84918.0,84912.0,0.05433095]
[1744600129576,0.53734093,84913.0,84912.0,0.05433095]
[1744600129911,0.70274093,84913.0,84912.0,0.05433095]
[1744600131575,0.28624154,84913.0,84912.0,0.05433095]
[1744600132228,0.28724154,84913.0,84912.0,0.05433095]
[1744600132655,0.30918155,84913.0,84912.0,0.05433095]
[1744600132871,0.32015361,84913.0,84912.0,0.05433095]
[1744600133083,0.19931207,84913.0,84912.0,0.10208504]
[1744600133723,0.1654,84913.0,84912.0,0.10208504]
[1744600133939,0.01097206,84929.0,84928.0,0.24274072]
[1744600134145,0.17637206,84929.0,84928.0,0.24274072]
[1744600134374,0.19831259,84929.0,84928.0,0.24274072]
[1744600135073,0.31915413,84929.0,84928.0,0.05334672]
[1744600135858,0.32015413,84929.0,84928.0,0.05334672]
[1744600136067,0.32115413,84929.0,84928.0,0.05334672]
[1744600136259,0.200168,84928.0,84927.0,0.05334672]
[1744600136628,0.32100954,84928.0,84927.0,0.05334672]
[1744600136825,0.16552813,84928.0,84927.0,0.05334672]
[1744600137413,0.011775,84923.0,84916.0,0.05334672]
[1744600137626,0.200187,84921.0,84918.0,0.05334672]
[1744600137795,0.13261654,84921.0,84917.0,0.06512272]
[1744600137996,0.14358912,84920.0,84917.0,0.06512272]
[1744600138198,0.02194001,84919.0,84917.0,0.06512272]
[1744600138403,0.14278155,84918.0,84917.0,0.06512272]
[1744600138604,0.1573224,84918.0,84917.0,0.05334672]
[1744600138805,0.14278155,84918.0,84917.0,0.05334672]
[1744600139010,0.15375413,84918.0,84917.0,0.05334672]
[1744600139591,0.15375413,84918.0,84912.0,0.01276023]
[1744600139592,0.20296885,84913.0,84912.0,0.00098423]
[1744600139801,0.3457504,84913.0,84912.0,0.00098423]
[1744600140052,0.35672298,84913.0,84912.0,0.00098423]
[1744600141102,0.35872298,84913.0,84912.0,0.00098423]
[1744600141304,0.45465348,84913.0,84912.0,0.00098423]
[1744600141504,0.35972298,84913.0,84912.0,0.00098423]
[1744600141705,0.40812298,84913.0,84912.0,0.00098423]
[1744600141907,0.79692298,84913.0,84912.0,2.3e-07]
[1744600142106,0.85243455,84913.0,84912.0,2.3e-07]
[1744600142309,0.528454,84901.0,84900.0,0.0004224]
[1744600142563,0.8508564,84901.0,84900.0,0.0004224]
[1744600142758,0.188463,84897.0,84896.0,0.0004224]
[1744600142959,0.32384539,84897.0,84896.0,0.0004224]
[1744600143198,0.38901138,84897.0,84896.0,0.0004224]
[1744600143387,0.3457854,84897.0,84896.0,0.0004224]
[1744600144355,0.35675798,84897.0,84896.0,0.0004224]
[1744600144792,0.36175798,84897.0,84896.0,0.0004224]
[1744600145197,0.35675798,84897.0,84896.0,0.0004224]
[1744600145380,0.47748646,84897.0,84896.0,0.0004224]
[1744600145587,0.36075798,84897.0,84896.0,0.0004224]
[1744600145884,0.36575798,84897.0,84896.0,0.0014224]
[1744600146141,0.36075798,84897.0,84896.0,0.0004224]
[1744600146331,0.36075798,84897.0,84896.0,0.0014224]
[1744600146488,0.36675798,84897.0,84896.0,0.0014224]
[1744600146885,0.76871652,84897.0,84896.0,0.0014224]
[1744600147129,0.93383652,84897.0,84896.0,0.0014224]
[1744600147329,0.94837737,84897.0,84896.0,0.0014224]
[1744600147916,0.94437737,84897.0,84896.0,0.0014224]
[1744600148236,0.93183652,84897.0,84896.0,0.0014224]
[1744600148631,0.04091259,84897.0,84896.0,0.08277629]
[1744600148890,0.03891259,84897.0,84896.0,0.08277629]
[1744600149119,0.03491259,84897.0,84896.0,0.05476912]
[1744600149336,0.02694001,84897.0,84896.0,0.05376912]
[1744600149511,0.02394001,84897.0,84896.0,0.05376912]
[1744600149765,0.02394001,84897.0,84896.0,0.05476912]
[1744600149967,0.02394001,84897.0,84896.0,0.05676912]
[1744600150236,0.02394001,84897.0,84896.0,0.05476912]
[1744600150470,0.33124455,84897.0,84896.0,0.05476912]
[1744600150799,0.3457854,84897.0,84896.0,0.0014224]
[1744600151639,0.35676646,84897.0,84896.0,0.0014224]
[1744600151888,0.35676646,84897.0,84896.0,0.0004224]
[1744600152123,0.35676646,84897.0,84896.0,0.0024224]
[1744600152329,0.35676646,84897.0,84896.0,0.0004224]
[1744600152494,0.35876646,84897.0,84896.0,0.0004224]
[1744600152687,0.36076646,84897.0,84896.0,0.0004224]
[1744600152896,0.52588646,84897.0,84896.0,0.0004224]
[1744600153799,0.33742346,84897.0,84896.0,0.0004224]
[1744600154004,0.45342046,84897.0,84896.0,0.61014039]
[1744600154798,0.42948045,84897.0,84896.0,0.61014039]
[1744600155010,0.42748045,84897.0,84896.0,0.61014039]
[1744600155207,0.42748045,84897.0,84896.0,0.61214039]
[1744600155488,0.42748045,84897.0,84896.0,0.58623412]
[1744600155797,0.16512,84905.0,84904.0,0.58279472]
[1744600158181,1.21216,84914.0,84913.0,0.24177472]
[1744600158398,1.21229897,84914.0,84913.0,0.24177472]
[1744600158607,1.22327188,84914.0,84913.0,0.24177472]
[1744600158814,0.01111188,84914.0,84913.0,0.64699399]
[1744600159200,0.00013897,84914.0,84913.0,0.64699399]
[1744600159414,0.00013897,84914.0,84913.0,0.65142114]
[1744600159818,0.00313897,84914.0,84913.0,0.65142114]
[1744600160032,0.00513897,84914.0,84913.0,0.65142114]
[1744600160222,0.00213897,84914.0,84913.0,0.65252914]
[1744600160589,0.00013897,84914.0,84913.0,0.65452914]
[1744600160724,0.00013897,84914.0,84913.0,0.70372914]
[1744600162323,0.00013897,84914.0,84913.0,0.59130987]
[1744600163123,0.01110098,84914.0,84913.0,0.06188187]
[1744600163680,0.13194252,84914.0,84913.0,0.06188187]
[1744600163875,0.13194252,84914.0,84913.0,0.00853515]
[1744600164079,0.16840665,84914.0,84913.0,0.003]
[1744600164286,0.16840665,84914.0,84913.0,0.05634672]
[1744600164483,0.16840665,84914.0,84913.0,0.003]
[1744600164484,0.8275177,84914.0,84913.0,0.003]
[1744600164695,0.87762827,84914.0,84913.0,0.003]
[1744600164872,0.87762827,84914.0,84913.0,0.002]
[1744600165424,0.20300385,84897.0,84896.0,0.0004224]
[1744600165640,0.90546478,84897.0,84896.0,0.05376912]
[1744600165984,0.92738806,84897.0,84896.0,0.0004224]
[1744600166186,0.92738806,84897.0,84896.0,0.05376912]
[1744600166390,0.93835007,84897.0,84896.0,0.0004224]
[1744600166803,0.94035007,84897.0,84896.0,0.0004224]
[1744600167685,0.52385068,84897.0,84896.0,0.0004224]
[1744600168042,0.52485068,84897.0,84896.0,0.0004224]
[1744600168480,0.53598983,84897.0,84896.0,0.0004224]
[1744600168788,0.32184683,84897.0,84896.0,0.05376912]
[1744600169113,0.32184683,84897.0,84896.0,0.05930167]
[1744600169762,0.32184683,84897.0,84896.0,0.1245558]
[1744600169923,0.20100529,84897.0,84896.0,0.1245558]
[1744600170176,0.01396201,84897.0,84896.0,0.5107558]
[1744600171123,0.16512,84906.0,84905.0,0.58179172]
[1744600171321,0.01096201,84913.0,84905.0,0.58179172]
[1744600171322,0.01096201,84913.0,84912.0,0.18843]
[1744600171526,0.01096201,84913.0,84912.0,0.20347835]
[1744600171721,0.01096201,84913.0,84912.0,0.20908359]
[1744600171966,0.01096201,84913.0,84912.0,0.26243031]
[1744600172231,0.01096201,84913.0,84912.0,0.24738196]
[1744600172439,0.00013897,84914.0,84912.0,0.24738196]
[1744600172648,0.00013897,84914.0,84913.0,0.05334672]
[1744600172975,0.00013897,84914.0,84913.0,0.05893066]
[1744600173591,0.00013897,84914.0,84913.0,0.05993066]
[1744600173793,0.00013897,84914.0,84913.0,0.06093066]
[1744600173998,0.00013897,84914.0,84913.0,0.40093066]
[1744600174198,0.01110098,84914.0,84913.0,0.40093066]
[1744600175183,0.01110098,84914.0,84913.0,0.40293066]
[1744600183423,0.01110098,84914.0,84913.0,0.06293066]
[1744600185824,0.01110098,84914.0,84913.0,0.06193066]
[1744600185977,0.13194252,84914.0,84913.0,0.06193066]
[1744600186158,0.15393149,84914.0,84913.0,0.06193066]
[1744600186800,0.13194252,84914.0,84913.0,0.00858394]
[1744600187095,0.13194252,84914.0,84913.0,0.06193066]
[1744600187298,0.13194252,84914.0,84913.0,0.05634672]
[1744600188466,0.13194252,84914.0,84913.0,0.06453679]
[1744600188669,0.13194252,84914.0,84913.0,0.07006096]
[1744600188877,0.15393188,84914.0,84913.0,0.07006096]
[1744600189664,0.34235688,84914.0,84913.0,0.06087089]
[1744600190205,0.15393188,84914.0,84913.0,0.06087089]
[1744600190806,0.57043127,84914.0,84913.0,0.06087089]
[1744600190992,0.57143127,84914.0,84913.0,0.06087089]
[1744600191396,0.57043127,84914.0,84913.0,0.06087089]
[1744600191603,0.57043127,84914.0,84913.0,0.06187089]
[1744600196672,0.57043127,84914.0,84913.0,0.00852417]
[1744600196838,0.57043127,84914.0,84913.0,0.06187089]
[1744600198876,0.54844191,84914.0,84913.0,0.06187089]
[1744600199553,0.42760037,84914.0,84913.0,0.40287089]
[1744600200294,0.00013897,84914.0,84913.0,0.40287089]
[1744600200484,0.00013897,84914.0,84913.0,0.44937089]
[1744600201704,0.00013897,84914.0,84913.0,0.44837089]
[1744600202161,0.00013897,84914.0,84913.0,0.45966174]
[1744600203315,0.00013897,84914.0,84913.0,0.46166174]
[1744600203609,0.00013897,84914.0,84913.0,0.45766174]
[1744600203748,0.00013897,84914.0,84913.0,0.46066174]
[1744600203966,0.00013897,84914.0,84913.0,0.46566174]
[1744600204382,0.00013897,84914.0,84913.0,0.46266174]
[1744600204580,0.00013897,84914.0,84913.0,0.45766174]
[1744600204781,0.00013897,84914.0,84913.0,0.46166174]
[1744600204978,0.00113897,84914.0,84913.0,0.46866174]
[1744600205636,0.01100945,84932.0,84931.0,0.24173472]
[1744600205862,0.01100945,84932.0,84931.0,0.58173472]
[1744600206016,0.01100945,84932.0,84931.0,0.58707995]
[1744600206725,0.000423,84934.0,84933.0,0.528383]
[1744600206927,0.000423,84934.0,84933.0,0.53370199]
[1744600207124,0.000423,84934.0,84933.0,0.52870199]
[1744600207446,0.000423,84934.0,84933.0,0.58204871]
[1744600208285,0.000423,84934.0,84933.0,0.58304871]
[1744600209521,0.000423,84934.0,84933.0,0.58404871]
[1744600211813,0.000423,84934.0,84933.0,0.05966571]
[1744600211956,0.12126454,84934.0,84933.0,0.05966571]
[1744600213279,0.13225197,84934.0,84933.0,0.05966571]
[1744600214064,0.13225197,84934.0,84933.0,0.05434672]
[1744600214250,0.13225197,84934.0,84933.0,0.05964256]
[1744600215039,0.13225197,84934.0,84933.0,0.24802556]
[1744600215243,0.14679282,84934.0,84933.0,0.00629584]
[1744600215459,0.60899221,84934.0,84933.0,0.00629584]
[1744600215672,0.60899221,84934.0,84933.0,0.001]
[1744600215896,0.6309525,84934.0,84933.0,0.001]
[1744600216475,0.01454085,84923.0,84911.0,0.011777]
[1744600216691,0.188423,84915.0,84912.0,0.00531089]
[1744600216884,0.12084154,84914.0,84913.0,0.05334672]
[1744600217083,0.12084154,84914.0,84913.0,0.05870419]
[1744600217509,0.14072895,84914.0,84913.0,0.05870419]
[1744600218316,0.14072895,84914.0,84913.0,0.05970419]
[1744600219571,0.32915395,84914.0,84913.0,0.05970419]
[1744600220411,0.74565334,84914.0,84913.0,0.05970419]
[1744600220806,0.76019419,84914.0,84913.0,0.001]
[1744600221215,0.83166791,84914.0,84913.0,0.001]
[1744600221411,0.74396206,84914.0,84913.0,0.05434672]
[1744600221718,0.93238706,84914.0,84913.0,0.05434672]
[1744600222163,0.93238706,84914.0,84913.0,0.05876708]
[1744600222391,0.93238706,84914.0,84913.0,0.00542036]
[1744600222587,0.93238706,84914.0,84913.0,0.05876708]
[1744600222720,0.93338706,84914.0,84913.0,0.05334672]
[1744600222931,0.93338706,84914.0,84913.0,0.06709919]
[1744600223143,0.75872708,84914.0,84913.0,0.06709919]
[1744600223343,0.03296115,84914.0,84913.0,0.64602719]
[1744600223567,0.01098743,84914.0,84913.0,0.76686873]
[1744600223766,0.41649939,84937.0,84933.0,0.24172972]
[1744600223970,0.41649939,84937.0,84933.0,0.24714955]
[1744600224211,0.16476,84942.0,84933.0,0.58814955]
[1744600224367,0.000423,84948.0,84933.0,0.58814955]
[1744600224571,0.000423,84948.0,84933.0,0.75849109]
[1744600225134,0.000423,84948.0,84933.0,0.76049109]
[1744600225953,0.000423,84948.0,84933.0,0.75949109]
[1744600226357,0.000423,84948.0,84933.0,0.77098914]
[1744600226556,0.000423,84948.0,84933.0,0.76998914]
[1744600226879,0.000423,84948.0,84933.0,0.77298914]
[1744600227273,0.001423,84934.0,84933.0,0.77898914]
[1744600230540,0.001423,84934.0,84933.0,0.77798914]
[1744600230896,0.001423,84934.0,84933.0,0.77898914]
[1744600231312,0.001423,84934.0,84933.0,0.77798914]
[1744600231485,0.001423,84934.0,84933.0,0.77898914]
[1744600231689,0.001423,84934.0,84933.0,0.78482066]
[1744600232861,0.001423,84934.0,84933.0,0.66297912]
[1744600233012,0.001423,84934.0,84933.0,0.61447912]
[1744600235417,0.001423,84934.0,84933.0,0.27447912]
[1744600235693,0.001423,84934.0,84933.0,0.60298107]
[1744600236089,0.001423,84934.0,84933.0,0.07459807]
[1744600236467,0.001423,84934.0,84933.0,0.26298107]
[1744600237069,0.001423,84934.0,84933.0,0.25998107]
[1744600237271,0.000423,84934.0,84933.0,0.25398107]
[1744600237442,0.000423,84934.0,84933.0,0.25598107]
[1744600237644,0.000423,84934.0,84933.0,0.25998107]
[1744600237842,0.000423,84934.0,84933.0,0.25598107]
[1744600238087,0.000423,84934.0,84933.0,0.25898107]
[1744600238487,0.000423,84934.0,84933.0,0.25598107]
[1744600238813,0.000423,84934.0,84933.0,0.25798107]
[1744600239424,0.000423,84934.0,84933.0,0.25598107]
[1744600239633,0.000423,84934.0,84933.0,0.25698107]
[1744600240230,0.000423,84934.0,84933.0,0.25598107]
[1744600240383,0.000423,84934.0,84933.0,0.25698107]
[1744600240902,0.000423,84934.0,84933.0,0.32271218]
[1744600241108,0.000423,84934.0,84933.0,0.25698107]
[1744600241284,0.000423,84934.0,84933.0,0.06859807]
[1744600242414,0.000423,84934.0,84933.0,0.06759807]
[1744600242986,0.53776393,84934.0,84933.0,0.01425135]
[1744600243225,0.58436393,84934.0,84933.0,0.003]
[1744600243900,0.58436393,84934.0,84933.0,0.001]
[1744600244097,0.188399,84926.0,84925.0,0.05434672]
[1744600244299,0.188399,84926.0,84925.0,0.06572415]
[1744600246423,0.188399,84926.0,84925.0,0.06472415]
[1744600246651,0.188399,84926.0,84925.0,0.01137743]
[1744600246652,0.30924054,84926.0,84925.0,0.01137743]
[1744600247055,0.30924054,84926.0,84920.0,0.05334672]
[1744600247056,0.18841,84921.0,84920.0,0.05334672]
[1744600247252,0.30925154,84921.0,84920.0,0.05334672]
[1744600247459,0.12084154,84921.0,84920.0,0.05334672]
[1744600248002,0.188412,84920.0,84918.0,0.05334672]
[1744600248344,0.188412,84920.0,84919.0,0.05334672]
[1744600248755,0.188412,84920.0,84916.0,0.05334672]
[1744600248950,0.188412,84920.0,84915.0,0.011776]
[1744600248951,0.188417,84918.0,84915.0,0.05334672]
[1744600249156,0.188417,84918.0,84916.0,0.05334672]
[1744600249779,0.188417,84918.0,84915.0,0.05334672]
[1744600249979,0.188421,84917.0,84916.0,0.001]
[1744600250471,0.188421,84917.0,84915.0,0.05334672]
[1744600250670,0.188434,84910.0,84909.0,0.05334672]
[1744600251885,0.72577493,84910.0,84909.0,0.003]
[1744600253297,0.72777493,84910.0,84909.0,0.003]
[1744600253526,0.188448,84904.0,84903.0,0.001]
[1744600253721,0.47380954,84904.0,84902.0,0.05348569]
[1744600253916,0.352968,84904.0,84903.0,0.01152764]
[1744600254126,0.47380954,84904.0,84902.0,0.00013897]
[1744600254283,0.12084154,84903.0,84902.0,0.00013897]
[1744600254479,0.53734093,84903.0,84902.0,0.00013897]
[1744600254900,0.55188178,84903.0,84902.0,0.00013897]
[1744600255275,0.011778,84899.0,84881.0,0.0008442]
[1744600255483,0.011778,84899.0,84844.0,0.001]
[1744600255484,0.1,84820.0,84801.0,0.002]
[1744600255723,0.1,84820.0,84813.0,6.2e-07]
[1744600255724,0.288648,84814.0,84813.0,6.2e-07]
[1744600255879,0.30318885,84814.0,84813.0,6.2e-07]
[1744600256078,0.31206531,84814.0,84813.0,6.2e-07]
[1744600256502,0.288703,84789.0,84788.0,0.1962145]
[1744600256701,0.58868539,84789.0,84788.0,0.1962145]
[1744600257286,0.58914854,84789.0,84788.0,0.1962145]
[1744600258176,0.58914854,84789.0,84788.0,0.1992145]
[1744600258545,0.6005852,84789.0,84788.0,0.1992145]
[1744600258745,0.60935301,84789.0,84788.0,0.1992145]
[1744600259148,0.60935301,84789.0,84788.0,0.19408451]
[1744600259352,0.60935301,84789.0,84771.0,0.002]
[1744600259353,0.011796,84774.0,84771.0,0.002]
[1744600259549,0.11454085,84772.0,84771.0,0.002]
[1744600259753,0.23538239,84772.0,84771.0,0.002]
[1744600259991,0.42412339,84772.0,84771.0,0.002]
[1744600260193,0.58876339,84772.0,84771.0,0.002]
[1744600261037,0.59276339,84772.0,84771.0,0.002]
[1744600261968,0.42812339,84772.0,84771.0,0.002]
[1744600262173,0.12284154,84772.0,84771.0,0.002]
[1744600262359,0.102,84772.0,84771.0,0.002]
[1744600262522,0.103,84772.0,84771.0,0.0151639]
[1744600262684,0.003,84772.0,84771.0,0.002]
[1744600262892,0.003,84772.0,84771.0,0.01512275]
[1744600262893,0.22384154,84772.0,84771.0,0.01512275]
[1744600263093,0.23538239,84772.0,84771.0,0.002]
[1744600263314,0.23738239,84772.0,84771.0,0.002]
[1744600263848,0.23538239,84772.0,84771.0,0.002]
[1744600264049,0.23638239,84772.0,84771.0,0.002]
[1744600264197,0.23538239,84772.0,84771.0,0.002]
[1744600264393,0.23538239,84772.0,84771.0,0.006]
[1744600264625,0.23638239,84772.0,84771.0,0.006]
[1744600265746,0.22184154,84772.0,84771.0,0.006]
[1744600265980,0.22184154,84772.0,84771.0,0.194743]
[1744600266163,0.22184154,84772.0,84771.0,0.20851583]
[1744600266680,0.23638239,84772.0,84771.0,0.01977283]
[1744600266882,0.23538239,84772.0,84771.0,0.01577283]
[1744600267203,0.23538239,84772.0,84771.0,0.004]
[1744600267204,0.65188178,84772.0,84771.0,0.004]
[1744600267406,0.1,84762.0,84761.0,0.188766]
[1744600267709,0.1,84762.0,84761.0,0.20252217]
[1744600268066,0.1,84762.0,84761.0,0.22513399]
[1744600268501,0.0996604,84762.0,84761.0,0.22513399]
[1744600268811,0.10012327,84762.0,84761.0,0.22513399]
[1744600269157,0.10112327,84762.0,84761.0,0.23013399]
[1744600269765,0.00146287,84762.0,84761.0,0.15876124]
[1744600269971,8.7e-07,84762.0,84761.0,0.71164325]
[1744600270481,8.7e-07,84762.0,84761.0,0.71264325]
[1744600270885,0.41649939,84791.0,84790.0,0.188701]
[1744600271105,0.0996604,84803.0,84802.0,0.011792]
[1744600271306,0.22050194,84803.0,84802.0,0.011792]
[1744600271654,0.22050194,84803.0,84800.0,0.20047]
[1744600271872,0.0996604,84801.0,84800.0,0.16360531]
[1744600272043,0.22050194,84801.0,84800.0,0.16360531]
[1744600272271,0.12084154,84801.0,84800.0,0.16374439]
[1744600272472,0.0996604,84801.0,84800.0,0.20133162]
[1744600272651,0.51615979,84805.0,84804.0,0.18867]
[1744600272851,0.63700133,84805.0,84804.0,0.18867]
[1744600273295,0.41649939,84805.0,84804.0,0.18867]
[1744600273511,0.51615979,84805.0,84804.0,0.23138525]
[1744600273925,0.1016604,84805.0,84804.0,0.23138525]
[1744600274643,0.1036604,84805.0,84804.0,0.23138525]
[1744600276418,0.1036604,84805.0,84800.0,0.00013908]
[1744600276620,0.11420125,84801.0,84800.0,0.00013908]
[1744600276875,0.23504279,84801.0,84800.0,0.00013908]
[1744600278131,0.28094279,84801.0,84800.0,0.00013908]
[1744600278757,0.28094279,84801.0,84800.0,0.00113908]
[1744600278937,0.28094279,84801.0,84800.0,0.00013908]
[1744600279112,0.23504279,84801.0,84800.0,0.00013908]
[1744600279318,0.40352279,84801.0,84800.0,0.00113908]
[1744600280072,0.40552279,84801.0,84800.0,0.00113908]
[1744600280618,0.23504279,84801.0,84800.0,0.00013908]
[1744600280813,0.40256279,84801.0,84800.0,0.00013908]
[1744600281076,0.23804279,84801.0,84800.0,0.00013908]
[1744600281217,0.40256279,84801.0,84800.0,0.00013908]
[1744600281429,0.23804279,84801.0,84800.0,0.00013908]
[1744600281646,0.40256279,84801.0,84800.0,0.00013908]
[1744600281847,0.38802194,84801.0,84800.0,0.00013908]
[1744600282046,0.39102194,84801.0,84800.0,0.00013908]
[1744600282246,0.28836154,84801.0,84800.0,0.00013908]
[1744600282451,0.22350194,84801.0,84800.0,0.00013908]
[1744600282649,0.003,84801.0,84800.0,0.02255969]
[1744600282851,0.0996604,84802.0,84801.0,0.188677]
[1744600283279,0.0996604,84802.0,84801.0,0.20268847]
[1744600283514,0.0996604,84802.0,84801.0,0.20981554]
[1744600285008,0.001,84802.0,84801.0,0.20981554]
[1744600285207,0.1006604,84802.0,84801.0,0.26869741]
[1744600286109,0.1006604,84802.0,84801.0,0.26769741]
[1744600286412,0.1006604,84802.0,84801.0,0.26869741]
[1744600286614,0.1006604,84802.0,84801.0,0.26769741]
[1744600286763,0.0996604,84802.0,84801.0,0.26869741]
[1744600287211,0.1006604,84802.0,84801.0,0.26869741]
[1744600287581,0.0996604,84802.0,84801.0,0.26869741]
[1744600287783,0.0996604,84802.0,84801.0,0.21081554]
[1744600287987,0.1006604,84802.0,84801.0,0.21081554]
[1744600289707,0.2893344,84802.0,84801.0,0.02238018]
[1744600289888,0.42471679,84802.0,84801.0,0.02238018]
[1744600290107,0.42471679,84802.0,84801.0,0.00836871]
[1744600290329,0.42471679,84802.0,84801.0,0.001]
[1744600290674,0.42371679,84802.0,84801.0,0.001]
[1744600290875,0.42471679,84802.0,84801.0,0.001]
[1744600291526,0.01454085,84801.0,84800.0,0.00013908]
[1744600291774,0.23504279,84801.0,84800.0,0.00013908]
[1744600292738,0.63991877,84801.0,84800.0,0.00013908]
[1744600292942,0.64291877,84801.0,84800.0,0.00013908]
[1744600293140,0.57804279,84801.0,84800.0,0.00013908]
[1744600293325,0.56350194,84801.0,84800.0,0.00013908]
[1744600293530,0.38798194,84801.0,84800.0,0.00013908]
[1744600293748,0.18869,84795.0,84785.0,0.188712]
[1744600293949,0.011793,84793.0,84787.0,0.011794]
[1744600294279,0.0996604,84789.0,84788.0,0.2404806]
[1744600295025,0.0996604,84792.0,84791.0,0.200491]
[1744600295228,0.12084154,84794.0,84793.0,0.188694]
[1744600295462,0.22050194,84794.0,84793.0,0.20286812]
[1744600296126,0.38478194,84794.0,84793.0,0.20286812]
[1744600296471,0.38578194,84794.0,84793.0,0.24656542]
[1744600296981,0.38578194,84794.0,84793.0,0.20386812]
[1744600297378,0.38578194,84794.0,84793.0,0.01517412]
[1744600298170,0.57447394,84794.0,84793.0,0.01517412]
[1744600298498,0.57447394,84794.0,84793.0,0.001]
[1744600299833,0.57447394,84794.0,84793.0,0.01517967]
[1744600303525,0.58901479,84794.0,84793.0,0.01517967]
[1744600303728,0.92901479,84794.0,84793.0,0.01517967]
[1744600303929,0.92901479,84794.0,84793.0,0.001]
[1744600304114,0.97481479,84794.0,84793.0,0.001]
[1744600305369,0.76473479,84794.0,84793.0,0.001]
[1744600305579,0.92901479,84794.0,84793.0,0.001]
[1744600305771,0.0996604,84786.0,84785.0,9.765e-05]
[1744600306000,0.22050194,84786.0,84785.0,0.04138921]
[1744600306213,0.38478194,84786.0,84785.0,0.053168]
[1744600306580,0.38478194,84786.0,84785.0,0.01187644]
[1744600307657,0.38478194,84786.0,84785.0,0.01387644]
[1744600307795,0.38478194,84786.0,84785.0,0.01187644]
[1744600308202,0.38578194,84786.0,84785.0,0.01487644]
[1744600308384,0.1006604,84786.0,84785.0,0.01487644]
[1744600321055,0.41021194,84786.0,84785.0,0.01487644]
[1744600321377,0.42475279,84786.0,84785.0,0.00309765]
[1744600321571,0.22150194,84786.0,84785.0,0.00309765]
[1744600321781,0.1006604,84786.0,84785.0,0.19180965]
[1744600322022,0.1006604,84786.0,84785.0,0.20352445]
[1744600322202,0.1006604,84786.0,84785.0,0.2451076]
[1744600322402,0.1006604,84786.0,84785.0,0.20352445]
[1744600324338,0.001,84786.0,84785.0,0.20352445]
[1744600325348,0.1006604,84786.0,84785.0,0.20352445]
[1744600326593,0.001,84786.0,84785.0,0.20352445]
[1744600326745,0.1006604,84786.0,84785.0,0.20352445]
[1744600327086,0.1006604,84786.0,84785.0,0.26874939]
[1744600327488,0.1006604,84786.0,84785.0,0.20352445]
[1744600335357,0.1006604,84786.0,84785.0,0.01481245]
[1744600335494,0.22150194,84786.0,84785.0,0.01481245]
[1744600335695,0.22150194,84786.0,84785.0,0.00309765]
[1744600335892,0.22150194,84786.0,84783.0,0.011794]
[1744600335893,1.04144218,84786.0,84755.0,0.188777]
[1744600336118,0.2884124,84767.0,84754.0,0.0004233]
[1744600336295,1.05323418,84767.0,84754.0,0.0004233]
[1744600337416,1.05423418,84767.0,84754.0,0.0004233]
[1744600339066,1.05623418,84767.0,84754.0,0.0004233]
[1744600339221,0.89219418,84767.0,84754.0,0.0004233]
[1744600339423,1.05623418,84767.0,84754.0,0.0004233]
[1744600340523,1.06497633,84767.0,84754.0,0.0004233]
[1744600340729,0.83749548,84767.0,84754.0,0.0004233]
[1744600340918,1.00157548,84767.0,84760.0,0.011798]
[1744600341064,1.00157548,84767.0,84758.0,0.011798]
[1744600341265,1.00157548,84767.0,84754.0,0.0004233]
[1744600341478,1.00157548,84767.0,84756.0,0.011798]
[1744600341684,1.00157548,84767.0,84754.0,0.0004233]
[1744600341884,1.01611633,84767.0,84754.0,0.0004233]
[1744600342125,1.01611633,84767.0,84757.0,0.011798]
[1744600342300,0.83749548,84767.0,84754.0,0.0004233]
[1744600342499,1.00157548,84767.0,84759.0,0.0122213]
[1744600342875,1.01611633,84767.0,84759.0,0.0004233]
[1744600343053,1.00157548,84767.0,84759.0,0.0004233]
[1744600343943,1.12230396,84767.0,84759.0,0.0004233]
[1744600344149,1.01611633,84767.0,84759.0,0.0004233]
[1744600345496,1.35611633,84767.0,84759.0,0.0004233]
[1744600346819,1.35311633,84767.0,84759.0,0.0004233]
[1744600347165,1.35711633,84767.0,84766.0,0.0014233]
[1744600348175,1.36011633,84767.0,84766.0,0.0014233]
[1744600348737,1.44133802,84767.0,84766.0,0.0014233]
[1744600349167,0.01454085,84761.0,84759.0,0.0004233]
[1744600349333,0.12084154,84760.0,84759.0,0.0004233]
[1744600349758,0.22050194,84760.0,84759.0,0.0004233]
[1744600350489,0.2206407,84760.0,84759.0,0.0004233]
[1744600350688,0.2226407,84760.0,84759.0,0.0004233]
[1744600351035,0.5626407,84760.0,84759.0,0.0004233]
[1744600353221,0.5646407,84760.0,84759.0,0.0004233]
[1744600354178,0.57918155,84760.0,84759.0,0.0004233]
[1744600354379,0.99425764,84760.0,84759.0,0.0004233]
[1744600354582,1.16398612,84760.0,84759.0,3e-07]
[1744600354876,0.30300925,84742.0,84741.0,0.002]
[1744600355072,0.30300925,84742.0,84732.0,0.0004233]
[1744600355073,2.31317998,84742.0,84732.0,0.0004233]
[1744600355302,2.31317998,84742.0,84690.0,0.13709822]
[1744600355303,0.188942,84682.0,84674.0,0.0004225]
[1744600355510,0.188942,84682.0,84619.0,0.18366018]
[1744600355511,0.54457885,84639.0,84619.0,0.18366018]
[1744600355715,0.80869885,84639.0,84619.0,0.18366018]
[1744600355841,0.80869885,84639.0,84638.0,0.14578122]
[1744600356044,0.82636599,84639.0,84638.0,0.1352359]